Cogmind - Beta 13 @@@ ROGUE MODE // 2024.04.08 @ 16:44:38 Player: Mantreise Result: Destroyed by D-53 Grenadier with Mini Grenade Launcher Performance ------------- Evolutions (1) 500 Regions Visited (3) 600 Robots Destroyed (25) 125 Value Destroyed (601) 601 Prototype IDs (0) 0 Alien Tech Used (0) 0 Bonus (0) 0 TOTAL SCORE: 1826 Bonus ------- None Cogmind --------- Core Integrity 0/400 Matter 5/300 Energy 49/100 System Corruption 9% Temperature Cool (0) Movement Core (150) Ox2 Location -9/Mines Parts ------- > --- POWER (1) -------- (None) > --- PROPULSION (2) --- (None) > --- UTILITY (4) ------ Large Storage Unit Weight Redist. System Light Armor Plating > --- WEAPON (2) ------- (None) > --- INVENTORY (15) --- Wheel Wheel Weapon Shielding Weapon Shielding Mini Grenade Launcher Signal Generator Peak State ------------ > --- POWER ------------ (None) > --- PROPULSION ------- Wheel Wheel > --- UTILITY ---------- Large Storage Unit Weight Redist. System Sensor Array Signal Interpreter > --- WEAPON ----------- Mini Grenade Launcher Mini Grenade Launcher > --- INVENTORY -------- Wheel Wheel Wheel Wheel Weapon Shielding Weapon Shielding Light Armor Plating Tractor Beam Medium Laser Light Assault Rifle [Rating: 12] Favorites ----------- Power Ion Engine Engine Ion Engine Propulsion Wheel Leg Aluminum Leg Wheel Wheel Utility Large Storage Unit Device Weight Redist. System Storage Large Storage Unit Processor Signal Interpreter Protection Light Armor Plating Weapon Light Assault Rifle Energy Gun Medium Laser Ballistic Gun Light Assault Rifle Launcher Mini Grenade Launcher Build | -11 -10 -9 -9 ------- Run | Yrd Mat Mat Min Slots Evolved 2 | . . 2 . Power . | . . . . Propulsion . | . . . . Utility 2 | . . 2 . Weapon . | . . . . Parts Attached 29 | 5 13 7 4 Power 2 | 1 1 . . Engine 2 | 1 1 . . Core . | . . . . Reactor . | . . . . Propulsion 9 | 2 5 1 1 Treads . | . . . . Leg 2 | 2 . . . Wheel 7 | . 5 1 1 Hover . | . . . . Flight . | . . . . Utility 7 | . 3 3 1 Device 3 | . . 3 . Storage 1 | . 1 . . Processor 2 | . 2 . . Hackware . | . . . . Protection 1 | . . . 1 Artifact . | . . . . Weapon 11 | 2 4 3 2 Energy Gun 2 | . 1 . 1 Energy Cannon . | . . . . Ballistic Gun 4 | 2 1 . 1 Ballistic Cannon . | . . . . Launcher 5 | . 2 3 . Special Weapon . | . . . . Impact Weapon . | . . . . Slashing Weapon . | . . . . Piercing Weapon . | . . . . Special Melee Weapon . | . . . . Unidentified Prototypes . | . . . . Parts Lost 12 | . . 5 7 Power 1 | . . 1 . Propulsion 4 | . . 2 2 Utility 2 | . . . 2 Weapon 5 | . . 2 3 Highest Loss Streak 7 | . . 5 7 To Critical Strikes . | . . . . Average Slot Usage (%) 91 | . 94 86 80 Engine 10 | . 14 4 . Leg 2 | . 3 . . Wheel 22 | . 24 17 17 Device 6 | . . 21 20 Storage 11 | . 12 11 11 Processor 11 | . 11 11 9 Energy Gun 1 | . 2 . 2 Ballistic Gun 16 | . 24 2 . Launcher 6 | . 1 19 17 Naked Turns . | . . . . Heaviest Build 32 | 6 29 32 24 Greatest Support 32 | 20 32 26 26 Greatest Overweight (x) 2 | . 2 1 2 Average Overweight (x) . | . . . . Largest Inventory Capacity 15 | 5 15 15 15 Average Capacity 13 | 5 13 15 15 Most Carried 15 | 2 15 13 8 Average Carried 8 | . 8 10 7 Final Capacity 15 | 5 15 15 15 Final Carried 14 | . 14 8 6 Class Distribution -------------------- 100% | Mutant Dominant Class ---------------- Mutant | -10/Materials Mutant | -9/Materials Mutant | -9/Mines Resources | -11 -10 -9 -9 ----------- Run | Yrd Mat Mat Min Matter Collected 570 | 225 259 76 10 Remotely 20 | . . 20 . Salvage Created 534 | . 352 166 16 Parts 45 | . 32 13 . Haulers Intercepted 2 | . 2 . . Recyclers Shooed . | . . . . Parts Field Recycled . | . . . . Retrieved Matter . | . . . . Parts Self-Destructed . | . . . . Prevented . | . . . . Kills | -11 -10 -9 -9 ------- Run | Yrd Mat Mat Min Combat Hostiles Destroyed 22 | . 8 9 5 Guns 3 | . 3 . . AOE 19 | . 5 9 5 Classes Destroyed 9 | . 6 2 1 Worker 2 | . 2 . . Hauler 2 | . 2 . . Operator 1 | . 1 . . Watcher 3 | . 2 1 . Swarmer 3 | . 3 . . Grunt 12 | . 5 7 . Brawler 1 | . . 1 . Duelist 1 | . . 1 . Assembled 5 | . . . 5 Best Kill Streak 6 | . 4 6 5 Combat Bots Only 5 | . 3 5 5 Max Kills in Single Turn 4 | . 2 2 4 Gunslinging . | . . . . Exploded 4 | . 2 2 4 Melee . | . . . . Uniques/NPCs Destroyed . | . . . . Combat | -11 -10 -9 -9 -------- Run | Yrd Mat Mat Min Hostile Shots Fired 95 | . 34 17 44 Missed 24 | . 10 3 11 Damage Taken 1306 | . 243 334 729 Core 451 | . 45 65 341 Absorbed by Shields . | . . . . Regen/Repaired (Parts) 11 | . 11 . . Core Remaining (%) 91 | 100 82 . . Volleys Fired 67 | . 46 13 8 Largest 2 | . 2 2 1 Hottest 70 | . 70 60 50 Shots Fired 109 | . 81 21 7 Gun 80 | . 75 . 5 Cannon . | . . . . Launcher 29 | . 6 21 2 Special . | . . . . Kinetic 74 | . 74 . . Thermal 6 | . 1 . 5 Explosive 29 | . 6 21 2 Electromagnetic . | . . . . Robot Hit Streak 5 | . 5 5 2 Robot Miss Streak 6 | . 6 1 1 Penetration Max . | . . . . Secondary Targets 1 | . 1 . . Max Gunslinging Chain 1 | . 1 . . Shots Hit Robots 43 | . 32 7 4 Core Hits 62 | . 29 25 8 Critical Kills . | . . . . Critical Parts Destroyed . | . . . . Critical Strikes 3 | . 1 . 2 Burn 3 | . 1 . 2 Melee Attacks . | . . . . Impact . | . . . . Slashing . | . . . . Piercing . | . . . . Sneak Attacks . | . . . . Combat Hostiles . | . . . . Follow-up Attacks . | . . . . Damage Inflicted 1988 | . 763 826 399 Guns 418 | . 368 . 50 Cannons . | . . . . Explosions 1570 | . 395 826 349 Melee . | . . . . Ramming . | . . . . Kinetic 356 | . 356 . . Thermal 62 | . 12 . 50 Explosive 1569 | . 395 825 349 Electromagnetic 1 | . . 1 . Impact . | . . . . Slashing . | . . . . Piercing . | . . . . Highest Corruption 9 | . . . 9 Average Corruption 8 | . . . 8 Corruption Purged . | . . . . Corruption Blocked . | . . . . Effects 2 | . . . 2 Matter Fused 1 | . . . 1 Weapon Failures 1 | . . . 1 Overload Shots . | . . . . Overflow Damage 106 | . . 47 59 Projectiles . | . . . . Explosions 106 | . . 47 59 Melee . | . . . . Knockbacks . | . . . . Impact . | . . . . Kinetic . | . . . . Secondary . | . . . . Self-Inflicted Damage 256 | . . 161 95 Shots 8 | . . 6 2 Rammed . | . . . . Targets Rammed . | . . . . Kicked . | . . . . Crushed . | . . . . Highest Temperature 30 | . 30 . 28 Average Temperature 11 | . 7 . 18 Received Heat Transfer 254 | . 96 78 80 Siege Activations . | . . . . Robots Corrupted . | . . . . Combat Hostiles . | . . . . Parts Fried . | . . . . Impact Corruptions . | . . . . Robots Melted . | . . . . Combat Hostiles . | . . . . Parts Melted . | . . . . Heat Transferred 407 | . 111 . 296 Parts Sabotaged . | . . . . Parts Stolen . | . . . . Parts Stripped . | . . . . Power Chain Reactions . | . . . . Alert | -11 -10 -9 -9 ------- Run | Yrd Mat Mat Min Peak Influence 352 | . 217 352 136 Initial 136 | . . 91 136 Average 106 | . 74 256 128 Maximum Alert Level 1 | . 1 1 . Low Security (%) 86 | 100 96 25 100 Level 1 13 | . 3 74 . Level 2 . | . . . . Level 3 . | . . . . Level 4 . | . . . . Level 5 . | . . . . High Security . | . . . . Max Security . | . . . . Squads Dispatched 3 | . 2 1 . Investigation 1 | . 1 . . Extermination . | . . . . Reinforcement 2 | . 1 1 . Assault . | . . . . Garrison . | . . . . Intercept . | . . . . Searches Triggered . | . . . . Construction Impeded 1 | . . 1 . Haulers Reinforced . | . . . . Active Scanning Responses . | . . . . Cargo Convoy Interrupts . | . . . . Stealth | -11 -10 -9 -9 --------- Run | Yrd Mat Mat Min Distress Signals 1 | . . 1 . Communications Jammed . | . . . . Distress Signals . | . . . . Times Spotted 37 | . 13 10 14 Peak Tracking Total 17 | . 4 4 17 Tactical Retreats 1 | . . . 1 Traps | -11 -10 -9 -9 ------- Run | Yrd Mat Mat Min Traps Triggered . | . . . . Indirectly . | . . . . Trap Hack Attempts . | . . . . Triggered . | . . . . Disarmed . | . . . . Reprogrammed . | . . . . Reused . | . . . . Traps Extracted . | . . . . Installed . | . . . . Triggered . | . . . . Machines | -11 -10 -9 -9 ---------- Run | Yrd Mat Mat Min Machines Disabled 1 | . . 1 . Max in Single Turn 1 | . . 1 . Machines Repaired . | . . . . Machines Dismantled . | . . . . Machines Sabotaged . | . . . . Overloaded Fab Kills . | . . . . Hacking | -11 -10 -9 -9 --------- Run | Yrd Mat Mat Min Machines Accessed 5 | . 3 2 . Terminals 4 | . 2 2 . Fabricators . | . . . . Repair Stations 1 | . 1 . . Recycling Units . | . . . . Scanalyzers . | . . . . Garrison Access . | . . . . Total Hacks 23 | . 15 8 . Successful 9 | . 5 4 . Failed 14 | . 10 4 . Catastrophic 3 | . 3 . . Database Lockouts . | . . . . Manual 11 | . 8 3 . Terminals 19 | . 11 8 . Fabricators . | . . . . Repair Stations 4 | . 4 . . Recycling Units . | . . . . Scanalyzers . | . . . . Garrison Access . | . . . . Terminal Hacks 4 | . 2 2 . Branch Access Points 1 | . 1 . . Garrison Status 1 | . . 1 . Hauler Manifests 1 | . 1 . . Zone Layout 1 | . . 1 . Fabricator Hacks . | . . . . Repair Station Hacks 3 | . 3 . . Scan Component 2 | . 2 . . Repair 1 | . 1 . . Recycling Unit Hacks . | . . . . Scanalyzer . | . . . . Garrison Access Hacks . | . . . . Unauthorized Hacks 2 | . . 2 . Terminals 2 | . . 2 . Botnet 2 | . . 2 . Fabricators . | . . . . Repair Stations . | . . . . Recycling Units . | . . . . Scanalyzers . | . . . . Garrison Access . | . . . . Data Cores Recovered . | . . . . Used . | . . . . Hacking Detections 5 | . 3 2 . Full Trace Events 3 | . 3 . . Feedback Events . | . . . . Feedback Blocked . | . . . . Robot Schematics Acquired . | . . . . Robots Built . | . . . . Authchips . | . . . . Time . | . . . . Total Robot Build Rating . | . . . . Part Schematics Acquired . | . . . . Parts Built . | . . . . Authchips . | . . . . Time . | . . . . Total Part Build Rating . | . . . . Parts Repaired 1 | . 1 . . Time 13 | . 13 . . Parts Recycled . | . . . . Recycled Matter . | . . . . Retrieved Matter . | . . . . Retrieved Components . | . . . . Parts Scanalyzed . | . . . . Part Schematics Acquired . | . . . . Parts Damaged . | . . . . Bothacking | -11 -10 -9 -9 ------------ Run | Yrd Mat Mat Min Used RIF Installer . | . . . . Robots Hacked . | . . . . Non-combat . | . . . . Combat . | . . . . Robot Hacks Applied . | . . . . Relay Couplers Released . | . . . . Fabnet Peak Effective % . | . . . . Robots Rewired . | . . . . Allies Hacked . | . . . . Hacks Repelled . | . . . . Allies | -11 -10 -9 -9 -------- Run | Yrd Mat Mat Min Total Allies 1 | . . . 1 Largest Group 1 | . . . 1 Highest-Rated Group 26 | . . . 26 Highest-Rated Ally 26 | . . . 26 Total Orders . | . . . . Ally Attacks 4 | . . . 4 Total Damage 42 | . . . 42 Kills 2 | . . . 2 Allies Corrupted 1 | . . . 1 Allies Melted . | . . . . Intel | -11 -10 -9 -9 ------- Run | Yrd Mat Mat Min Robot Analysis Total . | . . . . Derelict Logs Recovered . | . . . . Drone Launches . | . . . . Drone Recoveries . | . . . . Exploration | -11 -10 -9 -9 ------------- Run | Yrd Mat Mat Min Turns Passed 1017 | 60 643 157 157 Spaces Moved 734 | 45 469 107 113 Core 14 | 4 2 . 8 Treads . | . . . . Legs 72 | 41 31 . . Wheels 648 | . 436 107 105 Hover . | . . . . Flight . | . . . . Fastest Speed 50 | 50 95 80 80 Average Speed 97 | 113 97 93 92 Slowest Speed 150 | 120 120 95 150 Overloaded Moves . | . . . . Propulsion Burnouts . | . . . . Robots Hopped . | . . . . Cave-ins Triggered . | . . . . Exploration Rate (%) 25 | 3 51 11 36 Regions Visited 3 Branch Regions 1 Pre-discovered Areas . | . . . . Known Exits Taken 2 | . 1 1 . Unknown Exits Taken 1 | 1 . . . Scrap Searched . | . . . . Spaces Dug . | . . . . Terrain Destroyed 159 | . 33 99 27 Melee . | . . . . Projectile . | . . . . AOE 159 | . 33 99 27 Terrain Rammed . | . . . . Walls Destroyed . | . . . . Machines Disabled . | . . . . Actions | -11 -10 -9 -9 --------- Run | Yrd Mat Mat Min Total 937 | 54 584 141 158 Wait 58 | . 14 14 30 Move 731 | 44 468 106 113 Hop . | . . . . Pick Up 37 | 5 30 . 2 Fast Attach . | . . . . Attach 21 | 5 7 6 3 Detach . | . . . . Swap 8 | . 6 1 1 Drop 15 | . 13 1 1 Fire 67 | . 46 13 8 Melee . | . . . . Ram . | . . . . Kick . | . . . . Crush . | . . . . Escape Stasis . | . . . . Rewire . | . . . . Trap . | . . . . Miscellaneous . | . . . . Route ------- -11/Scrapyard -10/Materials (discovered 2 exits: *Mat / Min) -9/Materials -9/Mines History --------- Turn | Location | Event 16 | -11/Scrapyard | Discovered new exit (range 15) 61 | -11/Scrapyard | Entered Materials 328 | -10/Materials | Build established: Mutant 526 | -10/Materials | Identified exit to Mines 561 | -10/Materials | Repaired Wheel 696 | -10/Materials | Discovered new exit (range 8) 703 | -10/Materials | Identified exit to Materials 704 | -10/Materials | Entered another Materials area 704 | -9/Materials | Evolved 2 slots: Utility x2 827 | -9/Materials | Lost 5 parts (1p2n2w) 829 | -9/Materials | Discovered new exit (range 11) 860 | -9/Materials | Identified exit to Mines 861 | -9/Materials | Entered Mines 960 | -9/Mines | Assembled infested the area 975 | -9/Mines | Met a Derelict testing a Signal Generator 979 | -9/Mines | Found Signal Generator 1000 | -9/Mines | Core integrity fell below 50% 1006 | -9/Mines | Core integrity fell below 20% 1018 | -9/Mines | Destroyed by D-53 Grenadier with Mini Grenade Launcher Last Messages --------------- System corrupted by crushing effect (+5). Acquired 10 matter. Wheel destroyed. Destroyed Wheel. as-73992 destroyed. Med. Laser destroyed. Destroyed Asb. Hover Unit. as-39843 destroyed. Mni. Grenade Launcher destroyed. Destroyed Mni. Grenade Launcher. as-02542 destroyed. Destroyed Asb. F-torch. as-34062 destroyed. as-86442 destroyed. The unstable cave ceiling collapses. as-35659 destroyed. System corrupted: Matter fused (-3). The unstable cave ceiling collapses. Lgt. Assault Rifle destroyed. R-06 Scavenger destroyed. Map ----- +----------------------------------------------------+ | ?????????????????????????????????????????????????? | | ?????????????????????????????????????????????????? | | ?????????????????????????????????????????????????? | | ?????????????????????????????????????????????????? | | ?????????????????????????????????????????????????? | | ?????????????????????????????????????????????????? | | ?????????????????????????????????????????????????? | | ?????????????????????????????????????????????????? | | ?????????????????????????????????????????????????? | | ????????????? ##???????????????????????????????? | | ???????????## ???????????????????????????????? | | ??????????## ???????????????????????????????? | | ??????????? ??????????????????????????????? | | ??????????? ???????????????????????????????? | | ???????????? ??????###??????????????????????? | | ???????????? ???#### ###????????????????????? | | ????????????# ??## ##???????????????????? | | ????????????# #?## # #???????t???????????? | | ????????????? #?# #?????% ??????????? | | ?????????????# #?# ##### ??????????? | | ?????####????# ??# ## ??????????? | | ???### #???# #??# # #?????????? | | ??## #### ##?# #??????????? | | ### ## #### # = #??????????? | | d #??????????? | | #### @ #??????????? | | ##??## %=%! #??????????? | | ? ## ##????#### % ##??????????? | | ???## #????????# ######?###?????? | | ????## #????????# ## ## ## ####### | | ?????## ##????????# #?### | | ??????### #?????????# #????# | | ????????### #?????????# #???## | | ??????????# ##????????# #?### ####?? | | ??????????# ##???????# ### ##????? | | ????????### #???????# ### #?????? | | ???????## #???????# ## ##?## #?????? | | ????#### #???????# ### ####???# #?????? | | ??## """ ##??????# #?####??????# ##????? | | ??# """ ##?##### #??????????## #????? | | ??# """ #?# #??????????# #????? | | ??## #?# #??????????# ##????? | | ???# ### #####??????????# ##?????? | | ???## ### ## #??????????????# ##??????? | | ????### #??## ## #??????????????## #???????? | | ??????## ????# #????????######## ##??????? | | ???????####???# ### ##????????# #??????? | | ?????????????# #?# #?????????# #??????? | | ?????????????# #?# #?????????# ###### #??????? | | ?????????????## #?# #???????### ####?####??????? | +----------------------------------------------------+ Best States ------------- Heat Dissipation 28 Energy Generation 10 Energy Capacity 250 Matter Stores 300 Matter Capacity 300 Sight Range 16 Robot Scan Range 14 Terrain Scan Density 10 Additional Mass Support 6 Armor Coverage 150 Evasion (%) 55 Item Schematics ----------------- None Robot Schematics ------------------ None Fabricated ------------ Nothing Alien Tech Used ----------------- None Achievements -------------- None Challenges ------------ None Game ------ Seed CombatImprovedGun Manual? 0 Play Time 00:16:28 Cumulative 16.9 hours Start 2024.04.08 @ 16:31:08 End 2024.04.08 @ 16:44:38 Sessions 1 Manual Loads 0 Difficulty Rogue Special Mode None Game No. 22 Rogue 20 Adventurer 2 Explorer 0 Win Type - Total 0 Types 0/0/0/0/0/0/0/0/0 Lore% 20 Gallery% 24 Achievement% 21 Wizard Run 0 Options --------- Layout 0 ASCII 0 Keyboard 0 Movement Mouse Keybinds 0 Fullscreen 2 Font 18/Smallcaps Map View 38x25 Zoom Use 96% Tactical HUD 0 Map Filters NONE Filters NONE Steam 1 RUN: 7f736a53-1063-4748-9259-073dc5fa5d5d